fUSD/lending_fUSD_20250222
["ID","MTS","AMOUNT","RATE_DAILY","PERIOD"]
[354064149,1740217842934,-150.0,0.00012793,2]
[354064151,1740217842943,-150.0,0.00012796,2]
[354064153,1740217842952,-500.0,0.00012799,2]
[354064155,1740217842961,-1317.44866228,0.000128,2]
[354064159,1740217842983,-1764.09695905,0.000128,2]
[354064448,1740217885196,158.34,9.489e-05,2]
[354064450,1740218070507,156.12,8.767e-05,2]
[354064453,1740218986588,988.05,9.44e-05,2]
[354064459,1740219032130,-2002.65164984,9.999e-05,5]
[354064460,1740219032142,-987.78,9.999e-05,5]
[354064461,1740219032153,-780.09523378,9.999e-05,5]
[354064462,1740219032187,-349.97130778,9.999e-05,5]
[354064463,1740219032198,-967.81802057,9.999e-05,5]
[354064464,1740219032209,-12952.59678803,9.999e-05,5]
[354064465,1740219032222,-550.0,0.0001,2]
[354064466,1740219032231,-184.86103714,0.0001,2]
[354064467,1740219032241,-492.24,0.0001,2]
[354064468,1740219032250,-240.90078854,0.0001,2]
[354064469,1740219032262,-254.61921146,0.0001,2]
[354064470,1740219032272,-221.85132688,0.0001,2]
[354064471,1740219032352,-275.52867312,0.0001,2]
[354064472,1740219032362,-496.34,0.0001,2]
[354064473,1740219032371,-500.19,0.0001,2]
[354064474,1740219032380,-497.49,0.0001,2]
[354064475,1740219032389,-491.11,0.0001,2]
[354064476,1740219032398,-508.5,0.0001,2]
[354064477,1740219032407,-500.81,0.0001,2]
[354064478,1740219032416,-494.58,0.0001,2]
[354064479,1740219032425,-503.07,0.0001,2]
[354064480,1740219032435,-490.45,0.0001,2]
[354064481,1740219032444,-503.18,0.0001,2]
[354064482,1740219032453,-504.56,0.0001,2]
[354064483,1740219032462,-490.61,0.0001,2]
[354064484,1740219032471,-500.49,0.0001,2]
[354064485,1740219032481,-500.99,0.0001,2]
[354064486,1740219032490,-506.92,0.0001,2]
[354064487,1740219032499,-500.02,0.0001,2]
[354064488,1740219032509,-497.28,0.0001,2]
[354064489,1740219032518,-497.75,0.0001,2]
[354064490,1740219032528,-498.11,0.0001,2]
[354064491,1740219032537,-504.5,0.0001,2]
[354064492,1740219032546,-503.55,0.0001,2]
[354064493,1740219032556,-150.0,0.00011125,2]
[354064494,1740219032566,-3920.0,0.00011125,2]
[354064495,1740219032575,-658.47477281,0.00011169,2]
[354064496,1740219032584,-495.9,0.00011268,2]
[354064497,1740219032594,-501.92,0.00011269,2]
[354064498,1740219032603,-498.38,0.00011269,2]
[354064499,1740219032612,-495.07,0.00011269,2]
[354064500,1740219032622,-495.18,0.00011269,2]
[354064501,1740219032631,-493.19,0.00011269,2]
[354064502,1740219032640,-509.35,0.00011269,2]
[354064503,1740219032650,-509.85,0.00011269,2]
[354064504,1740219032659,-500.2,0.00011269,2]
[354064505,1740219032669,-498.71,0.00011269,2]
[354064506,1740219032679,-509.12,0.00011269,2]
[354064507,1740219032688,-299.99,0.00011269,2]
[354064508,1740219032698,-7294.25,0.00011269,2]
[354064509,1740219032708,-360.88,0.00011269,2]
[354064510,1740219032718,-493.96,0.00011269,2]
[354064511,1740219032727,-490.4,0.0001127,2]
[354064512,1740219032737,-491.96,0.0001127,2]
[354064514,1740219032746,-500.94,0.0001127,2]
[354064515,1740219032755,-500.61,0.0001127,2]
[354064518,1740219032766,-493.2,0.0001127,2]
[354064519,1740219032775,-496.17,0.0001127,2]
[354064520,1740219032784,-497.96,0.0001127,2]
[354064521,1740219032793,-506.2,0.00011289,2]
[354064522,1740219032803,-280.165,0.00011309,2]
[354064523,1740219032812,-250.0,0.00011309,2]
[354064524,1740219032822,-158.999,0.00011309,2]
[354064525,1740219032831,-206.078,0.00011309,2]
[354064526,1740219032840,-272.417,0.00011309,2]
[354064527,1740219032849,-155.001,0.00011309,2]
[354064528,1740219032859,-170.63,0.00011309,2]
[354064529,1740219032869,-1015.022,0.00011309,2]
[354064530,1740219032878,-2027.0,0.00011309,2]
[354064531,1740219032890,-569.0,0.00011309,2]
[354064532,1740219032899,-639.0,0.00011309,2]
[354064533,1740219032908,-1424.0,0.00011309,2]
[354064534,1740219032917,-784.0,0.00011309,2]
[354064535,1740219032927,-1266.0,0.00011309,2]
[354064536,1740219032936,-907.0,0.00011309,2]
[354064537,1740219032946,-539.0,0.00011309,2]
[354064538,1740219032957,-501.69,0.00011309,2]
[354064539,1740219032966,-497.81,0.00011309,2]
[354064540,1740219032975,-503.65,0.00011309,2]
[354064541,1740219032984,-165.12,0.00011372,2]
[354064542,1740219032993,-200.0,0.00011399,2]
[354064543,1740219033002,-684.79,0.00011414,2]
[354064544,1740219033012,-347.42,0.00011472,2]
[354064545,1740219033021,-178.87,0.00011484,2]
[354064546,1740219033030,-250.0,0.00011499,2]
[354064547,1740219033040,-206.09757062,0.00011589,2]
[354064548,1740219033050,-2000.0,0.00011591,2]
[354064549,1740219033059,-1000.0,0.00011622,2]
[354064550,1740219033068,-776.23,0.00011691,2]
[354064551,1740219033077,-440.37,0.00011691,2]
[354064552,1740219033086,-776.23,0.00011691,2]
[354064553,1740219033096,-440.37,0.00011691,2]
[354064554,1740219033105,-880.64,0.00011691,2]
[354064555,1740219033115,-1552.3,0.00011691,2]
[354064556,1740219033125,-440.37,0.00011691,2]
[354064557,1740219033134,-988.05,0.00011704,2]
[354064558,1740219033144,-630.79,0.00011716,2]
[354064559,1740219033154,-93.25794247,0.00011736,2]
[354064560,1740219033296,-14069.46205753,0.00011736,2]
[354064561,1740219033306,-500.0,0.00011828,2]
[354064562,1740219033315,-503.13,0.00012194,2]
[354064563,1740219033325,-1000.0,0.00012328,2]
[354064564,1740219033334,-500.0,0.00012397,2]
[354064565,1740219033343,-800.0,0.000125,4]
[354064566,1740219033352,-201.4703466,0.00012544,2]
[354064567,1740219033362,-150.09,0.00012575,2]
[354064568,1740219033371,-1600.0,0.000126,4]
[354064569,1740219033381,-1000.0,0.00012602,2]
[354064570,1740219033390,-431.84,0.0001265,2]
[354064571,1740219033400,-150.0,0.00012676,2]
[354064572,1740219033409,-150.0,0.00012682,2]
[354064573,1740219033418,-3312.422,0.00012684,2]
[354064574,1740219033427,-189.057,0.00012684,2]
[354064575,1740219033437,-150.0,0.00012684,2]
[354064576,1740219033446,-150.0,0.00012686,2]
[354064577,1740219033455,-800.17513987,0.000127,2]
[354064578,1740219033466,-517.32486013,0.000127,2]
[354064579,1740219033475,-8042.47482163,0.000127,2]
[354064580,1740219033485,-150.0,0.000127,2]
[354064581,1740219033494,-150.0,0.000127,2]
[354064582,1740219033503,-4313.98936181,0.000127,2]
[354064583,1740219033515,-2400.0,0.000127,4]
[354064584,1740219033524,-1000.0,0.000127,2]
[354064585,1740219033534,-9106.8241,0.000127,2]
[354064586,1740219033543,-150.0,0.00012705,2]
[354064587,1740219033553,-150.0,0.00012706,2]
[354064588,1740219033563,-150.0,0.00012708,2]
[354064589,1740219033572,-150.0,0.00012709,2]
[354064590,1740219033581,-150.0,0.0001271,2]
[354064591,1740219033591,-150.0,0.00012716,2]
[354064592,1740219033600,-150.0,0.00012718,2]
[354064593,1740219033610,-150.0,0.00012722,2]
[354064594,1740219033620,-150.0,0.00012723,2]
[354064595,1740219033629,-150.0,0.00012723,2]
[354064596,1740219033639,-150.0,0.00012724,2]
[354064597,1740219033649,-150.0,0.00012729,2]
[354064598,1740219033658,-150.0,0.0001273,2]
[354064599,1740219033668,-150.0,0.0001273,2]
[354064600,1740219033680,-150.0,0.00012737,2]
[354064601,1740219033690,-150.0,0.0001274,2]
[354064602,1740219033702,-150.0,0.00012742,2]
[354064603,1740219033711,-150.0,0.00012744,2]
[354064604,1740219033722,-150.0,0.00012745,2]
[354064605,1740219033732,-150.0,0.00012746,2]
[354064606,1740219033741,-150.0,0.00012747,2]
[354064607,1740219033752,-150.0,0.00012748,2]
[354064608,1740219033762,-150.0,0.00012758,2]
[354064609,1740219033772,-150.0,0.00012763,2]
[354064610,1740219033782,-150.0,0.00012764,2]
[354064611,1740219033793,-150.0,0.00012769,2]
[354064612,1740219033803,-150.0,0.00012769,2]
[354064613,1740219033814,-150.0,0.00012771,2]
[354064614,1740219033824,-150.0,0.00012776,2]
[354064615,1740219033834,-150.0,0.00012777,2]
[354064616,1740219033844,-150.0,0.00012783,2]
[354064617,1740219033855,-150.0,0.00012784,2]
[354064618,1740219033866,-150.0,0.00012784,2]
[354064619,1740219033877,-150.0,0.00012784,2]
[354064620,1740219033889,-150.0,0.00012785,2]
[354064621,1740219033899,-150.0,0.00012786,2]
[354064622,1740219033910,-150.0,0.00012789,2]
[354064623,1740219033920,-1148.7302524,0.0001279,2]
[354064624,1740219033930,-2698.4976971,0.0001279,2]
[354064625,1740219033940,-819.08435969,0.0001279,2]
[354064626,1740219033950,-150.0,0.00012795,2]
[354064627,1740219033962,-3211.58401458,0.00012796,2]
[354064628,1740219033972,-150.0,0.00012799,2]
[354064629,1740219033981,-500.0,0.00012799,2]
[354064630,1740219033990,-506.15,0.000128,2]
[354064631,1740219034000,-61838.71557771,0.000128,2]
[354064632,1740219034009,-1000.0,0.000128,2]
[354064633,1740219034019,-1000.0,0.000128,2]
[354064634,1740219034031,-1000.0,0.000128,2]
[354064635,1740219034041,-1000.0,0.000128,2]
[354064636,1740219034051,-1000.0,0.000128,2]
[354064637,1740219034061,-1000.0,0.000128,2]
[354064638,1740219034070,-1000.0,0.000128,2]
[354064639,1740219034080,-1000.0,0.000128,2]
[354064640,1740219034089,-1000.0,0.000128,2]
[354064641,1740219034099,-1000.0,0.000128,2]
[354064642,1740219034109,-1000.0,0.000128,2]
[354064643,1740219034119,-1000.0,0.000128,2]
[354064644,1740219034130,-1000.0,0.000128,2]
[354064645,1740219034144,-1000.0,0.000128,2]
[354064646,1740219034153,-1000.0,0.000128,2]
[354064647,1740219034162,-1000.0,0.000128,2]
[354064648,1740219034171,-1000.0,0.000128,2]
[354064649,1740219034181,-155.36203061,0.000128,2]
[354064650,1740219034193,-844.63796939,0.000128,2]
[354064651,1740219034203,-1000.0,0.000128,2]
[354064652,1740219034213,-1000.0,0.000128,2]
[354064653,1740219034222,-165.84401004,0.000128,2]
[354064654,1740219034234,-834.15598996,0.000128,2]
[354064655,1740219034243,-1000.0,0.000128,2]
[354064656,1740219034253,-1000.0,0.000128,2]
[354064657,1740219034263,-110.36903379,0.000128,2]
[354064658,1740219034275,-889.63096621,0.000128,2]
[354064659,1740219034285,-1000.0,0.000128,2]
[354064660,1740219034295,-392.99119398,0.000128,2]
[354064661,1740219037986,-292.86085184,0.00012696,2]
[354064662,1740219037996,-150.0,0.00012696,2]
[354064663,1740219038006,-150.0,0.00012704,2]
[354064664,1740219038016,-150.0,0.00012719,2]
[354064665,1740219038025,-150.0,0.0001272,2]
[354064666,1740219038036,-150.0,0.00012751,2]
[354064667,1740219038047,-150.0,0.00012754,2]
[354064668,1740219038057,-114.9933697,0.00012781,2]
[354064669,1740219038072,-35.0066303,0.00012781,2]
[354064670,1740219038082,-150.0,0.00012787,2]
[354064671,1740219038091,-150.0,0.00012797,2]
[354064672,1740219038100,-607.00880602,0.000128,2]
[354064673,1740219038110,-1000.0,0.000128,2]
[354064674,1740219038120,-1000.0,0.000128,2]
[354064675,1740219038129,-447.00638134,0.000128,2]
[354064676,1740219038139,-335.1038682,0.000128,2]
[354064677,1740219038149,-194.46304708,0.000128,2]
[354064678,1740219038158,-480.83435137,0.000128,2]
[354064679,1740219038168,-763.90170636,0.000128,2]
[354064680,1740219038178,-1400.01026955,0.000128,2]
[354064681,1740219038194,-507.74999992,0.000128,2]
[354064682,1740219038207,-92.23973053,0.000128,2]
[354064683,1740219038217,-200.0,0.000128,2]
[354064684,1740219038226,-716.75522713,0.000128,2]
[354064685,1740219038237,-4283.24477287,0.000128,2]
[354064686,1740219038247,-1153.55522713,0.000128,2]
[354064706,1740219040227,-1072.77241725,0.000128,2]
[354064707,1740219040239,-1040.21523148,0.000128,2]
[354064708,1740219040250,-1091.235,0.000128,2]
[354064709,1740219040261,-695.4614,0.000128,2]
[354064710,1740219040551,-461.76702379,0.000128,2]
[354065277,1740219046139,-150.0,0.00012694,2]
[354065279,1740219046149,-150.0,0.0001271,2]
[354065282,1740219046159,-150.0,0.00012714,2]
[354065283,1740219046168,-150.0,0.00012747,2]
[354065286,1740219046178,-150.0,0.00012755,2]
[354065287,1740219046187,-150.0,0.00012761,2]
[354065289,1740219046197,-150.0,0.00012785,2]
[354065292,1740219046207,-150.0,0.00012787,2]
[354065294,1740219046217,-150.0,0.00012797,2]
[354065296,1740219046226,-150.0,0.00012799,2]
[354065297,1740219046235,-5107.95430327,0.000128,2]
[354065305,1740219046303,-4436.55039708,0.000128,2]
[354065307,1740219046313,-3300.0,0.000128,4]
[354065309,1740219046323,-1254.94704846,0.000128,2]
[354065311,1740219046334,-597.73037,0.000128,2]
[354065314,1740219046344,-302.16779834,0.000128,2]
[354065316,1740219046353,-150.0,0.00012803,2]
[354065318,1740219046363,-150.0,0.00012805,2]
[354065319,1740219046372,-150.0,0.00012806,2]
[354065321,1740219046382,-150.0,0.00012808,2]
[354065323,1740219046391,-150.0,0.0001281,2]
[354065325,1740219046400,-4313.9893618,0.00012811,2]
[354065327,1740219046410,-150.0,0.00012816,2]
[354065329,1740219046419,-150.0,0.00012818,2]
[354065331,1740219046429,-150.0,0.00012822,2]
[354065333,1740219046438,-150.0,0.00012824,2]
[354065335,1740219046448,-150.0,0.00012824,2]
[354065337,1740219046457,-150.0,0.00012824,2]
[354065339,1740219046466,-150.0,0.00012832,2]
[354065341,1740219046475,-150.0,0.00012835,2]
[354065343,1740219046485,-150.0,0.00012836,2]
[354065345,1740219046494,-150.0,0.0001284,2]
[354065347,1740219046504,-150.0,0.0001284,2]
[354065349,1740219046514,-150.0,0.0001284,2]
[354065351,1740219046524,-150.0,0.0001284,2]
[354065353,1740219046533,-150.0,0.00012842,2]
[354065355,1740219046542,-150.0,0.00012842,2]
[354065357,1740219046552,-150.0,0.00012842,2]
[354065359,1740219046561,-150.0,0.00012845,2]
[354065361,1740219046570,-150.0,0.00012848,2]
[354065363,1740219046579,-150.0,0.00012853,2]
[354065365,1740219046588,-150.0,0.00012854,2]
[354065367,1740219046598,-150.0,0.00012857,2]
[354065369,1740219046607,-150.0,0.00012857,2]
[354065371,1740219046616,-150.0,0.00012857,2]
[354065373,1740219046624,-150.0,0.00012858,2]
[354065375,1740219046634,-150.0,0.00012867,2]
[354065377,1740219046645,-172.456759,0.00012868,2]
[354065379,1740219046654,-150.0,0.0001287,2]
[354065381,1740219046664,-150.0,0.0001287,2]
[354065383,1740219046674,-150.0,0.00012871,2]
[354065385,1740219046683,-150.0,0.00012874,2]
[354065387,1740219046693,-150.0,0.00012876,2]
[354065389,1740219046702,-150.0,0.00012876,2]
[354065391,1740219046711,-1000.0,0.00012876,2]
[354065393,1740219046720,-150.0,0.00012876,2]
[354065395,1740219046730,-500.0,0.00012876,2]
[354065397,1740219046739,-500.0,0.00012876,2]
[354065399,1740219046749,-150.0,0.00012876,2]
[354065401,1740219046758,-500.0,0.00012876,2]
[354065403,1740219046767,-150.0,0.00012876,2]
[354065405,1740219046777,-500.0,0.00012876,2]
[354065407,1740219046787,-150.0,0.00012876,2]
[354065409,1740219046796,-20224.0,0.00012877,2]
[354065411,1740219046805,-150.0,0.00012878,2]
[354065413,1740219046815,-150.0,0.00012879,2]
[354065415,1740219046824,-150.0,0.0001288,2]
[354065417,1740219046834,-500.92945583,0.00012881,2]
[354065419,1740219046844,-150.0,0.00012881,2]
[354065421,1740219046859,-150.0,0.00012881,2]
[354065423,1740219046877,-150.0,0.00012882,2]
[354065425,1740219046887,-150.0,0.00012883,2]
[354065426,1740219046897,-150.0,0.00012883,2]
[354065429,1740219046907,-150.0,0.00012888,2]
[354065431,1740219046918,-270.98,0.00012888,2]
[354065433,1740219046928,-150.0,0.00012889,2]
[354065434,1740219046937,-150.0,0.00012889,2]
[354065436,1740219046947,-500.0,0.0001289,2]
[354065438,1740219046957,-500.0,0.0001289,2]
[354065440,1740219046966,-500.0,0.0001289,2]
[354065442,1740219046976,-416.73725763,0.0001289,2]
[354065444,1740219046986,-500.0,0.0001289,2]
[354065447,1740219046995,-155.85666797,0.0001289,2]
[354065449,1740219047005,-150.0,0.0001289,2]
[354065450,1740219047014,-1218.1194831,0.00012891,2]
[354065453,1740219047024,-1287.5087138,0.00012891,2]
[354065454,1740219047034,-2840.967623,0.00012891,2]
[354065456,1740219047043,-2983.437549,0.00012891,2]
[354065458,1740219047053,-3125.9074749,0.00012891,2]
[354065459,1740219047062,-150.0,0.00012892,2]
[354065460,1740219047071,-150.0,0.00012892,2]
[354065461,1740219047080,-2188.0,0.00012893,2]
[354065462,1740219047089,-150.0,0.00012894,2]
[354065463,1740219047098,-150.0,0.00012897,2]
[354065464,1740219047107,-150.0,0.00012897,2]
[354065465,1740219047115,-150.0,0.00012898,2]
[354065466,1740219047124,-150.0,0.00012898,2]
[354065467,1740219047133,-672.57,0.00012899,2]
[354065469,1740219047143,-1000.0,0.00012899,2]
[354065471,1740219047152,-1000.0,0.00012899,2]
[354065473,1740219047162,-1000.0,0.00012899,2]
[354065475,1740219047171,-1000.0,0.00012899,2]
[354065477,1740219047181,-1000.0,0.00012899,2]
[354065479,1740219047190,-500.0,0.00012899,2]
[354065481,1740219047200,-500.0,0.00012899,2]
[354065483,1740219047209,-500.0,0.00012899,2]
[354065485,1740219047218,-500.0,0.00012899,2]
[354065487,1740219047227,-500.0,0.00012899,2]
[354065489,1740219047236,-500.0,0.00012899,2]
[354065491,1740219047246,-500.0,0.00012899,2]
[354065493,1740219047256,-449.10839099,0.00012899,2]
[354065495,1740219047265,-150.0,0.00012899,2]
[354065497,1740219047276,-199001.08429874,0.000129,3]
[354065500,1740219047288,-500.0,0.000129,3]
[354065502,1740219047300,-10654.0,0.000129,3]
[354065504,1740219047312,-8347.73992429,0.000129,3]
[354065506,1740219047323,-11062.4141724,0.000129,3]
[354065508,1740219047332,-101346.45758836,0.000129,2]
[354065510,1740219047344,-1346.56450318,0.000129,2]
[354065944,1740219420788,472.63,8.767e-05,2]
[354065994,1740220232239,-500.0,9.7e-05,3]
[354065995,1740220232251,-50.99707701,9.8e-05,3]
[354065996,1740220232293,-949.00292299,9.8e-05,3]
[354065997,1740220232303,-1500.0,9.9e-05,3]
[354065998,1740220232312,-502.01879859,9.973e-05,2]
[354065999,1740220232321,-300.0,9.998e-05,2]
[354066000,1740220232333,-150.0,9.998e-05,2]
[354066001,1740220232343,-2257.83277649,9.998e-05,2]
[354066002,1740220232353,-470.94570335,9.999e-05,2]
[354066003,1740220232362,-500.0,9.999e-05,2]
[354066004,1740220232371,-213.60257561,9.999e-05,2]
[354066005,1740220232381,-500.0,9.999e-05,2]
[354066006,1740220232389,-500.0,9.999e-05,2]
[354066007,1740220232400,-500.0,9.999e-05,2]
[354066008,1740220232409,-500.0,9.999e-05,2]
[354066009,1740220232420,-500.0,9.999e-05,2]
[354066010,1740220232429,-500.0,9.999e-05,2]
[354066011,1740220232438,-565.02240976,9.999e-05,2]
[354066012,1740220232448,-500.0,9.999e-05,2]
[354066013,1740220232457,-470.94570335,0.0001,2]
[354066014,1740220232466,-2770341.86032554,0.0001,2]
[354066015,1740220232476,-550.0,0.0001,2]
[354066016,1740220232486,-559.3131921,0.0001,2]
[354066017,1740220232495,-2000.0,0.0001,3]
[354066018,1740220232505,-470.94570335,0.0001,2]
[354066019,1740220232514,-302.16779834,0.0001,2]
[354066020,1740220232524,-155.85666798,0.0001,2]
[354066021,1740220232535,-205.28891343,0.000105,2]
[354066022,1740220232544,-205.28891333,0.000105,2]
[354066023,1740220232553,-500.0,0.0001067,2]
[354066024,1740220232563,-205.28891333,0.0001078,2]
[354066025,1740220232572,-158.47253349,0.000109,2]
[354066026,1740220232581,-157.771231,0.00010958,2]
[354066027,1740220232591,-153.640137,0.00010958,2]
[354066028,1740220232601,-156.374567,0.00010958,2]
[354066029,1740220232610,-194.00549,0.00010958,2]
[354066030,1740220232619,-175.645039,0.00010958,2]
[354066032,1740220232628,-158.723038,0.00010958,2]
[354066033,1740220232637,-277.491753,0.00010958,2]
[354066035,1740220232646,-158.776428,0.00010958,2]
[354066037,1740220232655,-150.99,0.00010958,2]
[354066039,1740220232665,-500.0,0.00010958,2]
[354066041,1740220232674,-500.0,0.00010958,2]
[354066043,1740220232683,-500.0,0.00010958,2]
[354066045,1740220232693,-500.0,0.00010958,2]
[354066047,1740220232702,-500.0,0.00010958,2]
[354066050,1740220232712,-500.0,0.00010958,2]
[354066052,1740220232721,-500.0,0.00010958,2]
[354066054,1740220232731,-500.0,0.00010958,2]
[354066056,1740220232740,-500.0,0.00010958,2]
[354066058,1740220232750,-500.0,0.00010958,2]
[354066060,1740220232759,-500.0,0.00010958,2]
[354066062,1740220232769,-500.0,0.00010958,2]
[354066064,1740220232779,-500.0,0.00010958,2]
[354066066,1740220232790,-641.92567409,0.00010958,2]
[354066068,1740220232800,-500.0,0.00010958,2]
[354066070,1740220232810,-500.0,0.00010958,2]
[354066071,1740220232819,-500.0,0.00010958,2]
[354066074,1740220232829,-500.0,0.00010958,2]
[354066078,1740220232839,-500.0,0.00010958,2]
[354066081,1740220232849,-500.0,0.00010958,2]
[354066084,1740220232859,-500.0,0.00010958,2]
[354066086,1740220232868,-500.0,0.00010958,2]
[354066089,1740220232877,-500.0,0.00010958,2]
[354066091,1740220232886,-500.0,0.00010958,2]
[354066093,1740220232896,-500.0,0.00010958,2]
[354066095,1740220232905,-604.22,0.00010958,2]
[354066097,1740220232913,-500.0,0.00010958,2]
[354066099,1740220232923,-500.0,0.00010958,2]
[354066101,1740220232932,-500.0,0.00010958,2]
[354066103,1740220232941,-500.0,0.00010958,2]
[354066105,1740220232952,-500.0,0.00010958,2]
[354066107,1740220232961,-500.0,0.00010958,2]
[354066109,1740220232970,-500.0,0.00010958,2]
[354066111,1740220232980,-500.0,0.00010958,2]
[354066113,1740220232989,-500.0,0.00010958,2]
[354066115,1740220232998,-500.0,0.00010958,2]
[354066117,1740220233007,-500.0,0.00010958,2]
[354066119,1740220233016,-500.0,0.00010958,2]
[354066121,1740220233026,-535.85,0.00010958,2]
[354066123,1740220233036,-500.0,0.00010958,2]
[354066125,1740220233045,-500.0,0.00010958,2]
[354066127,1740220233054,-500.0,0.00010958,2]
[354066129,1740220233063,-503.03624236,0.00010958,2]
[354066131,1740220233073,-507.94241288,0.00010958,2]
[354066133,1740220233082,-500.0,0.00010958,2]
[354066135,1740220233092,-500.0,0.00010958,2]
[354066137,1740220233102,-294.30246093,0.00010958,2]
[354066139,1740220233112,-513.19233818,0.00010958,2]
[354066141,1740220233121,-500.0,0.00010958,2]
[354066143,1740220233131,-500.0,0.00010958,2]
[354066145,1740220233140,-500.0,0.00010958,2]
[354066147,1740220233150,-500.0,0.00010958,2]
[354066149,1740220233159,-420.0,0.00010998,2]
[354066151,1740220233168,-1300.77930753,0.00011,2]
[354066153,1740220233178,-162.57530478,0.00011041,2]
[354066155,1740220233187,-500.0,0.00011041,2]
[354066157,1740220233197,-430.93223583,0.00011041,2]
[354066159,1740220233206,-500.0,0.00011041,2]
[354066161,1740220233215,-501.63531901,0.00011041,2]
[354066163,1740220233225,-509.35323872,0.00011041,2]
[354066165,1740220233234,-1129.45234365,0.00011099,2]
[354066167,1740220233244,-1129.45234361,0.00011099,2]
[354066169,1740220233256,-1129.45234361,0.00011099,2]
[354066171,1740220233267,-1129.45234361,0.00011099,2]
[354066173,1740220233276,-1129.45234361,0.00011189,2]
[354066175,1740220233286,-500.0,0.00011205,2]
[354066176,1740220233297,-205.28891333,0.0001122,2]
[354066179,1740220233308,-868.22,0.00011251,2]
[354066181,1740220233318,-649.35,0.00011358,2]
[354066183,1740220233327,-1681.7,0.00011379,2]
[354066185,1740220233337,-269.96,0.00011403,2]
[354066186,1740220233347,-153.0,0.00011433,2]
[354066188,1740220233356,-153.0,0.00011433,2]
[354066190,1740220233366,-153.0,0.00011433,2]
[354066192,1740220233375,-153.0,0.00011433,2]
[354066194,1740220233384,-153.0,0.00011433,2]
[354066196,1740220233393,-153.0,0.00011433,2]
[354066198,1740220233403,-153.0,0.00011433,2]
[354066200,1740220233412,-153.0,0.00011433,2]
[354066202,1740220233421,-153.0,0.00011433,2]
[354066204,1740220233430,-153.0,0.00011433,2]
[354066206,1740220233439,-153.0,0.00011433,2]
[354066208,1740220233448,-153.0,0.00011433,2]
[354066210,1740220233457,-153.0,0.00011433,2]
[354066212,1740220233466,-153.0,0.00011433,2]
[354066214,1740220233475,-153.0,0.00011433,2]
[354066216,1740220233485,-153.0,0.00011433,2]
[354066218,1740220233494,-1424.0,0.00011471,2]
[354066220,1740220233503,-3441.382,0.00011471,2]
[354066222,1740220233512,-71.03087196,0.00011471,2]
[354066227,1740220233683,-568.96912804,0.00011471,2]
[354066228,1740220233692,-432.13160451,0.00011511,2]
[354066229,1740220233709,-697.3207391,0.00011511,2]
[354066230,1740220233718,-250.0,0.00011522,2]
[354066231,1740220233728,-164.31,0.00011539,2]
[354066232,1740220233738,-150.0,0.00011589,2]
[354066233,1740220233747,-150.0,0.00011589,2]
[354066235,1740220233757,-150.0,0.00011589,2]
[354066237,1740220233766,-150.0,0.00011653,2]
[354066239,1740220233775,-205.28891333,0.0001166,2]
[354066241,1740220233785,-150.0,0.00011718,2]